Cogmind - Beta 11.1 @@@ ROGUE MODE // 2022.05.18 @ 05:01:29 Player: Miwa Result: Destroyed by C-17 Slicer with Blade Saw Performance ------------- Evolutions (4) 2000 Regions Visited (7) 1400 Robots Destroyed (53) 265 Value Destroyed (1044) 1044 Prototype IDs (3) 60 Alien Tech Used (0) 0 Bonus (555) 555 TOTAL SCORE: 5324 Bonus ------- High Alert Combat Kills 55 Entered DSFs 500 Cogmind --------- Core Integrity 0/850 Matter 194/300 Energy 100/100 System Corruption 1% Temperature Cool (0) Movement Core (50) Location -6/DSF Parts ------- > --- POWER (2) -------- (None) > --- PROPULSION (4) --- (None) > --- UTILITY (6) ------ Improved Signal Interpreter Transmission Jammer > --- WEAPON (3) ------- (None) > --- INVENTORY (5) ---- Actuator Array Great Maul Peak State ------------ > --- POWER ------------ Light Nuclear Core > --- PROPULSION ------- Nuclear Pulse Thruster Nuclear Pulse Thruster Nuclear Pulse Thruster > --- UTILITY ---------- Improved Signal Interpreter Active Sensor Suite Microactuators Transmission Jammer > --- WEAPON ----------- Variable Charge Gun Axe > --- INVENTORY -------- Actuator Array Great Maul [Rating: 65] Favorites ----------- Power Light Nuclear Core Engine Ion Engine Power Core Light Nuclear Core Propulsion Wheel Wheel Wheel Flight Unit Flight Unit Utility Actuator Array Device Actuator Array Storage Small Storage Unit Processor Improved Signal Interpreter Protection Light Armor Plating Weapon Enhanced Autogun Energy Gun EM Pulse Gun Ballistic Gun Enhanced Autogun Impact Weapon Great Maul Slashing Weapon Axe Build | -11 -10 -10 -9 -8 -7 -6 -6 ------- Run | Scr Mat Min Mat Mat Fac Fac DSF Slots Evolved 8 | . . . 2 2 2 2 . Power 1 | . . . . 1 . . . Propulsion 2 | . . . 1 . 1 . . Utility 4 | . . . 1 1 1 1 . Weapon 1 | . . . . . . 1 . Parts Attached 64 | 7 6 2 9 23 5 3 9 Power 11 | 1 1 . 1 4 . 1 3 Engine 7 | 1 1 . 1 2 . 1 1 Core 4 | . . . . 2 . . 2 Reactor . | . . . . . . . . Propulsion 25 | 2 2 2 5 7 3 . 4 Treads . | . . . . . . . . Leg . | . . . . . . . . Wheel 10 | 2 . . . 5 3 . . Hover . | . . . . . . . . Flight 15 | . 2 2 5 2 . . 4 Utility 15 | 2 1 . 1 7 2 1 1 Device 9 | 1 . . 1 3 2 1 1 Storage 2 | 1 1 . . . . . . Processor 1 | . . . . 1 . . . Hackware . | . . . . . . . . Protection 3 | . . . . 3 . . . Artifact . | . . . . . . . . Weapon 13 | 2 2 . 2 5 . 1 1 Energy Gun 8 | 2 2 . 1 2 . . 1 Energy Cannon . | . . . . . . . . Ballistic Gun 2 | . . . . 1 . 1 . Ballistic Cannon . | . . . . . . . . Launcher . | . . . . . . . . Special Weapon . | . . . . . . . . Impact Weapon 2 | . . . 1 1 . . . Slashing Weapon 1 | . . . . 1 . . . Piercing Weapon . | . . . . . . . . Special Melee Weapon . | . . . . . . . . Unidentified Prototypes 3 | . . . . 2 . . 1 Parts Lost 19 | . . . 3 5 1 . 10 Power 4 | . . . . 2 . . 2 Propulsion 7 | . . . 1 1 1 . 4 Utility 4 | . . . . 2 . . 2 Weapon 4 | . . . 2 . . . 2 Highest Loss Streak 5 | . . . 3 2 1 . 5 To Critical Strikes . | . . . . . . . . Average Slot Usage (%) 86 | . 89 85 70 88 97 100 63 Engine 4 | . 14 14 11 2 . 6 2 Core 9 | . . . . 12 15 6 2 Wheel 16 | . 8 . . 20 28 26 5 Flight 8 | . 19 28 32 4 . . 13 Device 16 | . 14 14 10 15 21 26 18 Processor 3 | . . . . 3 7 6 6 Protection 7 | . . . . 11 7 6 1 Energy Gun 6 | . 28 28 14 3 . . 1 Ballistic Gun 5 | . . . . 5 7 13 5 Impact Weapon 4 | . . . 3 7 . . . Slashing Weapon 2 | . . . . 1 7 6 4 Naked Turns . | . . . . . . . . Heaviest Build 35 | 14 14 8 10 34 27 35 35 Greatest Support 40 | 20 20 8 11 30 40 40 40 Greatest Overweight (x) 2 | . . . . 1 . . 2 Average Overweight (x) . | . . . . . . . . Largest Inventory Capacity 8 | 8 8 5 5 5 5 5 5 Average Capacity 5 | 7 5 5 5 5 5 5 5 Most Carried 7 | 7 6 5 5 5 5 4 5 Average Carried 3 | 4 5 5 4 2 4 3 3 Final Capacity 8 | 8 5 5 5 5 5 5 5 Final Carried 6 | 6 5 5 4 3 5 4 2 Class Distribution -------------------- 42% | Scavenger-Mutant 41% | Mutant 15% | Sprinter Dominant Class ---------------- Mutant | -10/Materials Mutant | -10/Mines Sprinter | -9/Materials Scavenger-Mutant | -8/Materials Scavenger-Mutant | -7/Factory Scavenger-Mutant | -6/Factory Sprinter | -6/DSF Resources | -11 -10 -10 -9 -8 -7 -6 -6 ----------- Run | Scr Mat Min Mat Mat Fac Fac DSF Matter Collected 701 | 270 60 20 43 263 45 . . Remotely . | . . . . . . . . Salvage Created 1960 | 144 216 81 281 1020 154 . 64 Parts 90 | 13 6 7 14 34 7 . 9 Haulers Intercepted 1 | . 1 . . . . . . Recyclers Shooed 5 | . 2 . 3 . . . . Parts Field Recycled . | . . . . . . . . Retrieved Matter . | . . . . . . . . Parts Self-Destructed . | . . . . . . . . Prevented . | . . . . . . . . Kills | -11 -10 -10 -9 -8 -7 -6 -6 ------- Run | Scr Mat Min Mat Mat Fac Fac DSF Combat Hostiles Destroyed 26 | . . 3 3 19 . . 1 Melee 12 | . . . . 11 . . 1 Guns 10 | . . 3 3 4 . . . Classes Destroyed 12 | 2 1 1 1 5 1 . 1 Worker 5 | . . . . 4 1 . . Builder 1 | . . . . 1 . . . Tunneler 6 | 3 . 1 . 1 1 . . Hauler 1 | . 1 . . . . . . Recycler 8 | 1 2 . 2 2 1 . . Mechanic 1 | . . . . . 1 . . Operator 1 | . . . . 1 . . . Watcher 4 | . . . . 4 . . . Swarmer 12 | . . 3 2 7 . . . Grunt 8 | . . . . 8 . . . Sentry 5 | . . . 1 4 . . . Heavy 1 | . . . . . . . 1 Best Kill Streak 8 | 3 2 3 4 8 2 . 1 Combat Bots Only 5 | . . 3 3 5 . . 1 Max Kills in Single Turn 2 | 1 1 2 1 1 1 . 1 Gunslinging 1 | . . 1 . . . . . Exploded . | . . . . . . . . Melee 1 | . . . . 1 . . 1 Uniques/NPCs Destroyed . | . . . . . . . . Combat | -11 -10 -10 -9 -8 -7 -6 -6 -------- Run | Scr Mat Min Mat Mat Fac Fac DSF Damage Taken 3058 | . 13 14 230 952 237 . 1612 Core 1114 | . . . 47 153 54 . 860 Absorbed by Shields . | . . . . . . . . Redirected to Shielding 81 | . . . . 81 . . . Core Remaining (%) 90 | 100 . 100 88 72 92 . . Volleys Fired 62 | 11 9 7 12 16 . . 7 Largest 2 | 2 2 2 2 1 . . 2 Hottest 100 | 90 80 80 80 50 . . 100 Shots Fired 103 | 22 18 14 21 16 . . 12 Gun 103 | 22 18 14 21 16 . . 12 Cannon . | . . . . . . . . Launcher . | . . . . . . . . Special . | . . . . . . . . Kinetic 14 | . . . . 5 . . 9 Thermal 36 | 22 . . . 11 . . 3 Explosive . | . . . . . . . . Electromagnetic 53 | . 18 14 21 . . . . Robot Hit Streak 9 | 3 8 2 6 9 . . 8 Robot Miss Streak 4 | 3 4 1 2 2 . . 2 Penetration Max . | . . . . . . . . Secondary Targets 2 | . . 2 . . . . . Max Gunslinging Chain 1 | . . 1 . . . . . Shots Hit Robots 139 | 11 11 6 17 73 8 . 13 Core Hits 42 | 5 4 4 6 16 4 . 3 Critical Kills 2 | . . . . 2 . . . Critical Parts Destroyed 11 | . . . 1 10 . . . Critical Strikes 16 | 1 . . 1 14 . . . Burn 3 | 1 . . . 2 . . . Smash 13 | . . . 1 12 . . . Melee Attacks 89 | . . . 2 74 9 . 4 Impact 64 | . . . 2 62 . . . Slashing 25 | . . . . 12 9 . 4 Piercing . | . . . . . . . . Sneak Attacks 14 | . . . 1 9 4 . . Combat Hostiles . | . . . . . . . . Follow-up Attacks . | . . . . . . . . Damage Inflicted 4212 | 141 194 69 254 2875 404 . 275 Guns 946 | 141 162 69 182 196 . . 196 Cannons . | . . . . . . . . Explosions 32 | . 32 . . . . . . Melee 3234 | . . . 72 2679 404 . 79 Ramming . | . . . . . . . . Kinetic 219 | . . . . 85 . . 134 Thermal 346 | 141 32 . . 111 . . 62 Explosive . | . . . . . . . . Electromagnetic 413 | . 162 69 182 . . . . Impact 2286 | . . . 72 2214 . . . Slashing 948 | . . . . 465 404 . 79 Piercing . | . . . . . . . . Highest Corruption 1 | . . . . . . . 1 Average Corruption 1 | . . . . . . . 1 Corruption Purged . | . . . . . . . . Corruption Blocked . | . . . . . . . . Overload Shots . | . . . . . . . . Overflow Damage 1037 | . . . 42 931 64 . . Projectiles . | . . . . . . . . Explosions . | . . . . . . . . Melee 1037 | . . . 42 931 64 . . Knockbacks 13 | . . . . 13 . . . Impact 11 | . . . . 11 . . . Kinetic . | . . . . . . . . Secondary 2 | . . . . 2 . . . Self-Inflicted Damage 5 | . 5 . . . . . . Shots 1 | . 1 . . . . . . Rammed . | . . . . . . . . Targets Rammed . | . . . . . . . . Kicked . | . . . . . . . . Crushed . | . . . . . . . . Highest Temperature 120 | 90 120 74 100 68 3 . 6 Average Temperature 40 | 34 59 34 51 23 3 . 5 Received Heat Transfer 711 | . . . 48 378 42 . 243 Siege Activations . | . . . . . . . . Robots Corrupted . | . . . . . . . . Combat Hostiles . | . . . . . . . . Parts Fried 29 | . 1 . 3 25 . . . Impact Corruptions 33 | . . . 2 31 . . . Robots Melted . | . . . . . . . . Combat Hostiles . | . . . . . . . . Parts Melted 3 | . . . . 3 . . . Heat Transferred 1100 | 458 50 . . 481 . . 111 Parts Sabotaged . | . . . . . . . . Parts Stolen . | . . . . . . . . Parts Stripped . | . . . . . . . . Power Chain Reactions 1 | . 1 . . . . . . Missiles Intercepted . | . . . . . . . . Alert | -11 -10 -10 -9 -8 -7 -6 -6 ------- Run | Scr Mat Min Mat Mat Fac Fac DSF Peak Influence 568 | 20 81 121 156 568 216 105 82 Initial 191 | . 13 31 46 65 191 105 77 Average 241 | 9 18 82 84 390 203 105 68 Maximum Alert Level 2 | . . . . 2 1 . . Low Security (%) 46 | 100 100 100 100 7 40 100 100 Level 1 24 | . . . . 34 59 . . Level 2 29 | . . . . 58 . . . Level 3 . | . . . . . . . . Level 4 . | . . . . . . . . Level 5 . | . . . . . . . . High Security . | . . . . . . . . Max Security . | . . . . . . . . Squads Dispatched 6 | . . . 1 2 . . 3 Investigation 1 | . . . . 1 . . . Extermination . | . . . . . . . . Reinforcement 5 | . . . 1 1 . . 3 Assault . | . . . . . . . . Garrison . | . . . . . . . . Intercept . | . . . . . . . . Searches Triggered . | . . . . . . . . Construction Impeded . | . . . . . . . . Haulers Reinforced . | . . . . . . . . Active Scanning Responses . | . . . . . . . . Cargo Convoy Interrupts . | . . . . . . . . Stealth | -11 -10 -10 -9 -8 -7 -6 -6 --------- Run | Scr Mat Min Mat Mat Fac Fac DSF Distress Signals 7 | . . . 1 6 . . . Communications Jammed . | . . . . . . . . Distress Signals . | . . . . . . . . Times Spotted 75 | . 6 3 16 33 2 . 15 Peak Tracking Total 12 | . 5 3 12 6 1 . 10 Tactical Retreats 8 | . 1 . . 5 . . 2 Traps | -11 -10 -10 -9 -8 -7 -6 -6 ------- Run | Scr Mat Min Mat Mat Fac Fac DSF Traps Triggered 3 | . . . . 1 . . 2 Indirectly . | . . . . . . . . Trap Hack Attempts . | . . . . . . . . Triggered . | . . . . . . . . Disarmed . | . . . . . . . . Reprogrammed . | . . . . . . . . Reused . | . . . . . . . . Traps Extracted . | . . . . . . . . Installed . | . . . . . . . . Triggered . | . . . . . . . . Machines | -11 -10 -10 -9 -8 -7 -6 -6 ---------- Run | Scr Mat Min Mat Mat Fac Fac DSF Machines Disabled 2 | . 1 1 . . . . . Max in Single Turn 1 | . 1 1 . . . . . Machines Sabotaged . | . . . . . . . . Garrisons Compromised . | . . . . . . . . Overloaded Fab Kills . | . . . . . . . . Hacking | -11 -10 -10 -9 -8 -7 -6 -6 --------- Run | Scr Mat Min Mat Mat Fac Fac DSF Machines Accessed 6 | . 1 1 . 3 . 1 . Terminals 6 | . 1 1 . 3 . 1 . Fabricators . | . . . . . . . . Repair Stations . | . . . . . . . . Recycling Units . | . . . . . . . . Scanalyzers . | . . . . . . . . Garrison Access . | . . . . . . . . Total Hacks 16 | . 2 3 . 9 . 2 . Successful 9 | . 2 2 . 4 . 1 . Failed 7 | . . 1 . 5 . 1 . Catastrophic . | . . . . . . . . Database Lockouts . | . . . . . . . . Manual 4 | . 1 2 . 1 . . . Terminals 16 | . 2 3 . 9 . 2 . Fabricators . | . . . . . . . . Repair Stations . | . . . . . . . . Recycling Units . | . . . . . . . . Scanalyzers . | . . . . . . . . Garrison Access . | . . . . . . . . Terminal Hacks 7 | . 1 1 . 4 . 1 . Record 4 | . . 1 . 3 . . . Open DSF 1 | . . . . . . 1 . Emergency Access Points 1 | . 1 . . . . . . Zone Layout 1 | . . . . 1 . . . Fabricator Hacks . | . . . . . . . . Repair Station Hacks . | . . . . . . . . Recycling Unit Hacks . | . . . . . . . . Scanalyzer . | . . . . . . . . Garrison Access Hacks . | . . . . . . . . Unauthorized Hacks 2 | . 1 1 . . . . . Terminals 2 | . 1 1 . . . . . Assimilate 2 | . 1 1 . . . . . Fabricators . | . . . . . . . . Repair Stations . | . . . . . . . . Recycling Units . | . . . . . . . . Scanalyzers . | . . . . . . . . Garrison Access . | . . . . . . . . Data Cores Recovered 1 | . . . . 1 . . . Used . | . . . . . . . . Hacking Detections 6 | . 1 1 . 3 . 1 . Full Trace Events . | . . . . . . . . Feedback Events . | . . . . . . . . Feedback Blocked . | . . . . . . . . Robot Schematics Acquired . | . . . . . . . . Robots Built . | . . . . . . . . Authchips . | . . . . . . . . Time . | . . . . . . . . Total Robot Build Rating . | . . . . . . . . Part Schematics Acquired . | . . . . . . . . Parts Built . | . . . . . . . . Authchips . | . . . . . . . . Time . | . . . . . . . . Total Part Build Rating . | . . . . . . . . Parts Repaired . | . . . . . . . . Time . | . . . . . . . . Parts Recycled . | . . . . . . . . Recycled Matter . | . . . . . . . . Retrieved Matter . | . . . . . . . . Retrieved Components . | . . . . . . . . Parts Scanalyzed . | . . . . . . . . Part Schematics Acquired . | . . . . . . . . Parts Damaged . | . . . . . . . . Bothacking | -11 -10 -10 -9 -8 -7 -6 -6 ------------ Run | Scr Mat Min Mat Mat Fac Fac DSF Used RIF Installer . | . . . . . . . . Robots Hacked . | . . . . . . . . Non-combat . | . . . . . . . . Combat . | . . . . . . . . Robot Hacks Applied . | . . . . . . . . Relay Couplers Released . | . . . . . . . . Fabnet Peak Effective % . | . . . . . . . . Robots Rewired . | . . . . . . . . Allies Hacked . | . . . . . . . . Hacks Repelled . | . . . . . . . . Allies | -11 -10 -10 -9 -8 -7 -6 -6 -------- Run | Scr Mat Min Mat Mat Fac Fac DSF Total Allies . | . . . . . . . . Largest Group . | . . . . . . . . Highest-Rated Group . | . . . . . . . . Highest-Rated Ally . | . . . . . . . . Total Orders . | . . . . . . . . Ally Attacks . | . . . . . . . . Total Damage . | . . . . . . . . Kills . | . . . . . . . . Allies Corrupted . | . . . . . . . . Allies Melted . | . . . . . . . . Intel | -11 -10 -10 -9 -8 -7 -6 -6 ------- Run | Scr Mat Min Mat Mat Fac Fac DSF Robot Analysis Total . | . . . . . . . . Derelict Logs Recovered 1 | . . 1 . . . . . Drone Launches . | . . . . . . . . Drone Recoveries . | . . . . . . . . Exploration | -11 -10 -10 -9 -8 -7 -6 -6 ------------- Run | Scr Mat Min Mat Mat Fac Fac DSF Turns Passed 1789 | 143 101 97 108 891 230 59 160 Spaces Moved 1701 | 112 112 197 180 661 242 69 128 Core 7 | 7 . . . . . . . Treads . | . . . . . . . . Legs . | . . . . . . . . Wheels 1077 | 105 30 . . 602 242 69 29 Hover . | . . . . . . . . Flight 617 | . 82 197 180 59 . . 99 Fastest Speed 29 | 50 37 37 29 29 80 80 31 Average Speed 65 | 78 48 37 29 81 80 80 48 Slowest Speed 207 | 80 80 37 37 95 80 80 207 Overloaded Moves . | . . . . . . . . Propulsion Burnouts . | . . . . . . . . Robots Hopped 1 | . . . . . . . 1 Cave-ins Triggered . | . . . . . . . . Exploration Rate (%) 31 | 5 27 44 26 55 6 3 87 Regions Visited 7 Branch Regions 1 Pre-discovered Areas . | . . . . . . . . Known Exits Taken 4 | . . 1 . 1 1 1 . Unknown Exits Taken 3 | 1 1 . 1 . . . . Scrap Searched . | . . . . . . . . Spaces Dug . | . . . . . . . . Terrain Destroyed . | . . . . . . . . Melee . | . . . . . . . . Projectile . | . . . . . . . . AOE . | . . . . . . . . Terrain Rammed . | . . . . . . . . Walls Destroyed . | . . . . . . . . Machines Disabled . | . . . . . . . . Actions | -11 -10 -10 -9 -8 -7 -6 -6 --------- Run | Scr Mat Min Mat Mat Fac Fac DSF Total 2117 | 144 141 207 210 864 266 72 213 Wait 103 | 3 . . 1 54 4 . 41 Move 1692 | 111 111 196 179 660 241 68 126 Hop 1 | . . . . . . . 1 Pick Up 53 | 12 6 . 2 22 5 1 5 Fast Attach 8 | 1 1 . 2 . 1 . 3 Attach 30 | 6 . . 3 14 2 2 3 Detach 5 | . . . 1 2 . . 2 Swap 26 | . 5 2 4 9 2 1 3 Drop 40 | . 9 2 4 13 2 . 10 Fire 62 | 11 9 7 12 16 . . 7 Melee 89 | . . . 2 74 9 . 4 Ram . | . . . . . . . . Kick . | . . . . . . . . Crush . | . . . . . . . . Escape Stasis 8 | . . . . . . . 8 Rewire . | . . . . . . . . Trap . | . . . . . . . . Miscellaneous . | . . . . . . . . Route ------- -11/Scrapyard -10/Materials -10/Mines -9/Materials -8/Materials -7/Factory -6/Factory -6/DSF (discovered 1 exit: [*Fac]) History --------- Turn | Location | Event 6 | -11/Scrapyard | Discovered new exit (range 16) 144 | -11/Scrapyard | Entered Materials 240 | -10/Materials | Discovered new exit (range 6) 245 | -10/Materials | Entered Mines 298 | -10/Mines | Identified exit to Materials 310 | -10/Mines | Build established: Mutant 342 | -10/Mines | Entered Materials 342 | -9/Materials | Evolved 2 slots: Propulsion x1, Utility x1 445 | -9/Materials | Discovered new exit (range 13) 450 | -9/Materials | Lost 3 parts (1n2w) 450 | -9/Materials | Entered another Materials area 450 | -8/Materials | Evolved 2 slots: Power x1, Utility x1 1220 | -8/Materials | Build established: Scavenger-Mutant 1329 | -8/Materials | Discovered new exit (range 16) 1340 | -8/Materials | Identified exit to Factory 1341 | -8/Materials | Entered Factory 1341 | -7/Factory | Evolved 2 slots: Propulsion x1, Utility x1 1483 | -7/Factory | Discovered new exit (range 15) 1570 | -7/Factory | Identified exit to Factory 1571 | -7/Factory | Entered another Factory area 1571 | -6/Factory | Evolved 2 slots: Utility x1, Weapon x1 1630 | -6/Factory | Identified exit to DSF 1630 | -6/Factory | Entered DSF 1672 | -6/DSF | Additional patrols routed to DSF 1742 | -6/DSF | Found Prototype Device 1743 | -6/DSF | Identified Active Sensor Suite 1755 | -6/DSF | Lost 4 parts (1n1u2w) 1759 | -6/DSF | Discovered new exit (range 15) 1775 | -6/DSF | Core integrity fell below 50% 1787 | -6/DSF | Core integrity fell below 20% 1790 | -6/DSF | Destroyed by C-17 Slicer with Blade Saw Last Messages --------------- Dropped Imp. Recalibrator. Acquired Prototype Device. Identified Active Sensor Suite. Nuclear Pulse Thruster severed. Dropped Variable Charge Gun. Dropped Axe. C-17 Slicer destroyed. Microactuators severed. X-67 Chaingunner springs to life. Lgt. Nuclear Core destroyed. EXIT=FOUND Acquired Lgt. Fission Core. Nuclear Pulse Thruster destroyed. Triggered Alarm Trap. An alarm sounds. X-72 Disruptor springs to life. Critical hit (Burn: +37). Lgt. Fission Core destroyed. Nuclear Pulse Thruster destroyed. Active Sensor Suite destroyed. Map ----- +----------------------------------------------------+ | ???????#= !==#??????# % **#??????????????????? | | ???????#= =*#??????# **#??????????????????? | | ???????## ###?????###" *"##??????????????????? | | ???????# ==#?????#"[[ !!#??????????????????? | | ???????# ==#??????#[[%%%!!#??????????????????? | | ???????# ==#??????# [ !!#??????????????????? | | ??????### ###??????## #################????? | | ??????#!! #???!#????## ###===#===## #????? | | ??????#!! ##!!!#!!!## ]!#!===#===## #????? | | ??????# % *]!%!= #????? | | ??????# % =%=%* #????? | | ??????# /!=! #????? | | ??????# ##!!!#]]]## [##!!!# ##! #????? | | ??????# ##!!!#]]]### ###!!!# ## #????? | | ??????### #??#####?### Ag############ ###????? | | ???????? ?????????!! !!???????# =#?????? | | ???????? ????????#!! !????????# =#?????? | | ???????# ????????#!!g !????????# =#?????? | | ???????## #????????### ###??????### ##?????? | | ????????! !????????# #??????#== =#?????? | | ????????! !????????# ???????#== =#?????? | | ????????# #????###?? ?########## ##?????? | | ????????# ??#??# ?## #?#===#==### ###????? | | ????????" ##!!# ### ###===#==## ""##???? | | ????????" x c x """""??? | | ????????"< @c ""##"??? | | ?????????????# # #* !!!==# #==##"""""#????? | | ????????????????????#**!!!==#########"""""#????? | | ????????????????????#########???????##"####????? | | ?????????????????????????????????????#"#???????? | | ??????????????????????????????????????""???????? | | ???????????????????????????????????????????????? | | ???????????????????????????????????????????????? | | ???????????????????????????????????????????????? | | ???????????????????????????????????????????????? | | ???????????????????????????????????????????????? | | | | | | | | | | | | | | | | | | | | | | | | | | | | | +----------------------------------------------------+ Best States ------------- Heat Dissipation 37 Energy Generation 23 Energy Capacity 335 Matter Stores 300 Matter Capacity 300 Sight Range 16 Robot Scan Range 20 Terrain Scan Range 16 Terrain Scan Density 10 Jamming Range 12 Armor Coverage 225 Propulsion Shielding 66 Melee Speed Boost 20 Evasion (%) 64 Item Schematics ----------------- None Robot Schematics ------------------ None Fabricated ------------ Nothing Alien Tech Used ----------------- None Achievements -------------- True Hacker Challenges ------------ None Game ------ Seed WaveHugeShifter Manual? 0 Play Time 00:40:36 Cumulative 16.6 hours Start 2022.05.18 @ 04:20:19 End 2022.05.18 @ 05:01:29 Sessions 1 Manual Loads 0 Difficulty Rogue Special Mode None Game No. 26 Rogue 26 Adventurer 0 Explorer 0 Win Type - Total 0 Types 0/0/0/0/0/0/0/0/0 Lore% 15 Gallery% 22 Achievement% 17 Wizard Run 0 Options --------- ASCII 0 Keyboard 0 Movement Mouse Keybinds 0 Fullscreen 2 Font 24/Smallcaps Map View 76x50 Tactical HUD 0 Map Filters NONE Filters NONE Steam 1 RUN: ba2c082a-4921-490c-bb1c-b39cc7b7d30f